[Event "*** Titled Tuesday Blitz"]
[Site "Chess.com"]
[Date "2021.02.09"]
[Round "9"]
[White "Rytenko_V"]
[Black "Cuajada_Zero"]
[Result "0-1"]
[WhiteElo "2389"]
[BlackElo "2204"]
[TimeControl "180+1"]
[EndTime "11:47:45 PST"]
[Termination "Cuajada_Zero won on time"]

1. d4 {[%clk 0:03:00.9]} 1... Nf6 {[%clk 0:02:58.2]} 2. c4 {[%clk 0:03:01]} 2...
e6 {[%clk 0:02:57.9]} 3. Nc3 {[%clk 0:03:01.5]} 3... Bb4 {[%clk 0:02:56.3]} 4.
Bd2 {[%clk 0:03:01.9]} 4... d5 {[%clk 0:02:54.2]} 5. e3 {[%clk 0:03:01.4]} 5...
O-O {[%clk 0:02:53.7]} 6. Nf3 {[%clk 0:03:01.7]} 6... b6 {[%clk 0:02:53.9]} 7.
cxd5 {[%clk 0:03:00.4]} 7... exd5 {[%clk 0:02:53.8]} 8. Bd3 {[%clk 0:02:59.6]}
8... Bb7 {[%clk 0:02:53.7]} 9. O-O {[%clk 0:02:59.6]} 9... Nbd7 {[%clk
0:02:53.2]} 10. Rc1 {[%clk 0:02:48]} 10... a6 {[%clk 0:02:49.1]} 11. Qc2 {[%clk
0:02:37]} 11... Bd6 {[%clk 0:02:44.5]} 12. e4 {[%clk 0:02:28.1]} 12... dxe4
{[%clk 0:02:41.5]} 13. Nxe4 {[%clk 0:02:29]} 13... Nxe4 {[%clk 0:02:38.6]} 14.
Bxe4 {[%clk 0:02:29.9]} 14... Bxe4 {[%clk 0:02:38.7]} 15. Qxe4 {[%clk
0:02:30.6]} 15... Nf6 {[%clk 0:02:38.7]} 16. Qh4 {[%clk 0:02:29.9]} 16... h6
{[%clk 0:02:07.5]} 17. Rfd1 {[%clk 0:01:51.5]} 17... Nd5 {[%clk 0:01:58.4]} 18.
Qe4 {[%clk 0:01:47.5]} 18... Re8 {[%clk 0:01:48.2]} 19. Qg4 {[%clk 0:01:44]}
19... Qf6 {[%clk 0:00:59.8]} 20. Re1 {[%clk 0:01:41]} 20... a5 {[%clk
0:00:37.8]} 21. Nh4 {[%clk 0:01:39.3]} 21... Bf4 {[%clk 0:00:19.3]} 22. Bxf4
{[%clk 0:01:15.4]} 22... Qxf4 {[%clk 0:00:20.2]} 23. Qxf4 {[%clk 0:00:45.3]}
23... Nxf4 {[%clk 0:00:21.1]} 24. Rxe8+ {[%clk 0:00:36.4]} 24... Rxe8 {[%clk
0:00:22]} 25. Kf1 {[%clk 0:00:34.8]} 25... Nd3 {[%clk 0:00:19.3]} 26. Rb1 {[%clk
0:00:34.8]} 26... Rd8 {[%clk 0:00:17.7]} 27. Nf3 {[%clk 0:00:34.8]} 27... Nb4
{[%clk 0:00:16.6]} 28. a3 {[%clk 0:00:33.4]} 28... Nc6 {[%clk 0:00:16.6]} 29.
Rd1 {[%clk 0:00:31.4]} 29... Ne7 {[%clk 0:00:14.6]} 30. Ke2 {[%clk 0:00:29.9]}
30... Nd5 {[%clk 0:00:14.7]} 31. g3 {[%clk 0:00:29.7]} 31... f6 {[%clk 0:00:15]}
32. Kd3 {[%clk 0:00:25.4]} 32... Kf7 {[%clk 0:00:15.3]} 33. Rc1 {[%clk
0:00:25.3]} 33... Rd7 {[%clk 0:00:15.3]} 34. Nd2 {[%clk 0:00:25.5]} 34... Ne7
{[%clk 0:00:14]} 35. Ke3 {[%clk 0:00:24.5]} 35... Nf5+ {[%clk 0:00:14]} 36. Kf3
{[%clk 0:00:19.6]} 36... Nxd4+ {[%clk 0:00:14]} 37. Kg2 {[%clk 0:00:17.3]} 37...
Ne6 {[%clk 0:00:12]} 38. Ne4 {[%clk 0:00:16.2]} 38... c5 {[%clk 0:00:11]} 39. h4
{[%clk 0:00:13.6]} 39... Nd4 {[%clk 0:00:10.6]} 40. Nc3 {[%clk 0:00:12.7]} 40...
Nb3 {[%clk 0:00:09.2]} 41. Re1 {[%clk 0:00:12.4]} 41... Rd2 {[%clk 0:00:08.9]}
42. Na4 {[%clk 0:00:11.1]} 42... Nd4 {[%clk 0:00:07.6]} 43. Nxb6 {[%clk
0:00:08.6]} 43... Rxb2 {[%clk 0:00:07.7]} 44. Nd5 {[%clk 0:00:07.4]} 44... Ne6
{[%clk 0:00:06.2]} 45. Rc1 {[%clk 0:00:05.3]} 45... Ra2 {[%clk 0:00:05.2]} 46.
Rc3 {[%clk 0:00:04.8]} 46... a4 {[%clk 0:00:04.2]} 47. Nb6 {[%clk 0:00:04.6]}
47... Rb2 {[%clk 0:00:02.6]} 48. Nxa4 {[%clk 0:00:04.5]} 48... Rb5 {[%clk
0:00:02.9]} 49. f4 {[%clk 0:00:02.8]} 49... h5 {[%clk 0:00:03.3]} 50. f5 {[%clk
0:00:02.7]} 50... Nd4 {[%clk 0:00:03.4]} 51. Nxc5 {[%clk 0:00:02.3]} 51... Rb2+
{[%clk 0:00:03.4]} 52. Kf1 {[%clk 0:00:01.8]} 52... Nxf5 {[%clk 0:00:03.9]} 53.
Ne4 {[%clk 0:00:02.1]} 53... Ra2 {[%clk 0:00:03.4]} 54. Rc7+ {[%clk 0:00:02.7]}
54... Kg6 {[%clk 0:00:03.4]} 55. Ra7 {[%clk 0:00:02.5]} 55... Ne3+ {[%clk
0:00:03.6]} 56. Ke1 {[%clk 0:00:02.5]} 56... Nc2+ {[%clk 0:00:03.6]} 57. Kd1
{[%clk 0:00:02.4]} 57... Rxa3 {[%clk 0:00:04.2]} 58. Rc7 {[%clk 0:00:02.4]}
58... Ne3+ {[%clk 0:00:04.1]} 59. Ke2 {[%clk 0:00:02.2]} 59... Nf5 {[%clk
0:00:04]} 60. Rd7 {[%clk 0:00:02.3]} 60... Nxg3+ {[%clk 0:00:03.9]} 61. Nxg3
{[%clk 0:00:02.9]} 61... Rxg3 {[%clk 0:00:03.5]} 62. Kf2 {[%clk 0:00:03.8]}
62... Rg4 {[%clk 0:00:03.8]} 63. Kf3 {[%clk 0:00:04]} 63... Rxh4 {[%clk
0:00:03.9]} 64. Re7 {[%clk 0:00:04.9]} 64... Rg4 {[%clk 0:00:04.3]} 65. Re2
{[%clk 0:00:05]} 65... Rg5 {[%clk 0:00:04.5]} 66. Rh2 {[%clk 0:00:05.5]} 66...
Rf5+ {[%clk 0:00:04.6]} 67. Kg3 {[%clk 0:00:05.3]} 67... Ra5 {[%clk 0:00:04.4]}
68. Rd2 {[%clk 0:00:04.8]} 68... Kg5 {[%clk 0:00:04.4]} 69. Rd7 {[%clk
0:00:03.9]} 69... g6 {[%clk 0:00:04.7]} 70. Rd3 {[%clk 0:00:04.6]} 70... f5
{[%clk 0:00:04.3]} 71. Kh3 {[%clk 0:00:05.5]} 71... Ra4 {[%clk 0:00:04.2]} 72.
Rg3+ {[%clk 0:00:05.6]} 72... Rg4 {[%clk 0:00:02.8]} 73. Rb3 {[%clk 0:00:06.5]}
73... Ra4 {[%clk 0:00:03.2]} 74. Rc3 {[%clk 0:00:05.8]} 74... f4 {[%clk
0:00:03.1]} 75. Rc5+ {[%clk 0:00:05.4]} 75... Kh6 {[%clk 0:00:03.5]} 76. Rc6
{[%clk 0:00:06.3]} 76... Rd4 {[%clk 0:00:03.2]} 77. Rc5 {[%clk 0:00:06.5]} 77...
Rd3+ {[%clk 0:00:02.9]} 78. Kg2 {[%clk 0:00:06.1]} 78... h4 {[%clk 0:00:02.4]}
79. Rc6 {[%clk 0:00:07]} 79... Kh5 {[%clk 0:00:02.6]} 80. Kh2 {[%clk 0:00:07.8]}
80... g5 {[%clk 0:00:03.2]} 81. Rc8 {[%clk 0:00:08.2]} 81... Kg4 {[%clk
0:00:03.8]} 82. Rc2 {[%clk 0:00:08.9]} 82... Re3 {[%clk 0:00:04.3]} 83. Rg2+
{[%clk 0:00:09.3]} 83... Rg3 {[%clk 0:00:05.2]} 84. Rf2 {[%clk 0:00:09.9]} 84...
Rh3+ {[%clk 0:00:06.1]} 85. Kg2 {[%clk 0:00:09.9]} 85... Rg3+ {[%clk 0:00:07]}
86. Kh2 {[%clk 0:00:10.5]} 86... Ra3 {[%clk 0:00:07.7]} 87. Rg2+ {[%clk
0:00:09.3]} 87... Kf5 {[%clk 0:00:08]} 88. Rc2 {[%clk 0:00:10.2]} 88... f3
{[%clk 0:00:08.4]} 89. Kh3 {[%clk 0:00:09.2]} 89... Re3 {[%clk 0:00:07]} 90.
Rc5+ {[%clk 0:00:08.3]} 90... Re5 {[%clk 0:00:07]} 91. Rc2 {[%clk 0:00:07.9]}
91... g4+ {[%clk 0:00:06.7]} 92. Kxh4 {[%clk 0:00:08.2]} 92... Kf4 {[%clk
0:00:07]} 93. Rc4+ {[%clk 0:00:08.2]} 93... Re4 {[%clk 0:00:07.5]} 94. Rc2
{[%clk 0:00:06.5]} 94... Re2 {[%clk 0:00:07]} 95. Rc4+ {[%clk 0:00:04.2]} 95...
Re4 {[%clk 0:00:07.6]} 96. Rc2 {[%clk 0:00:03.9]} 96... g3 {[%clk 0:00:07.4]}
97. Kh3 {[%clk 0:00:04.2]} 97... Re2 {[%clk 0:00:06.4]} 98. Rc4+ {[%clk
0:00:03]} 98... Ke3 {[%clk 0:00:06.7]} 99. Kxg3 {[%clk 0:00:03.2]} 99... Rg2+
{[%clk 0:00:06.2]} 100. Kh3 {[%clk 0:00:03.6]} 100... Rg8 {[%clk 0:00:06.7]}
101. Rc7 {[%clk 0:00:03.3]} 101... Rg5 {[%clk 0:00:04.6]} 102. Re7+ {[%clk
0:00:03.5]} 102... Kf4 {[%clk 0:00:04.8]} 0-1

[Event "*** Titled Tuesday Blitz"]
[Site "Chess.com"]
[Date "2021.02.09"]
[Round "10"]
[White "Chuchofrio1"]
[Black "GameOverBro"]
[Result "0-1"]
[WhiteElo "2301"]
[BlackElo "2425"]
[TimeControl "180+1"]
[EndTime "11:50:34 PST"]
[Termination "GameOverBro won by checkmate"]

1. e4 {[%clk 0:03:00.9]} 1... d6 {[%clk 0:02:13.3]} 2. d4 {[%clk 0:03:00.1]}
2... Nf6 {[%clk 0:02:13.6]} 3. Nc3 {[%clk 0:03:00.2]} 3... e5 {[%clk 0:02:13.8]}
4. Nf3 {[%clk 0:02:59.9]} 4... Nbd7 {[%clk 0:02:13.5]} 5. Bc4 {[%clk 0:02:57.5]}
5... Be7 {[%clk 0:02:13.3]} 6. O-O {[%clk 0:02:56]} 6... c6 {[%clk 0:02:13.4]}
7. dxe5 {[%clk 0:02:54.8]} 7... dxe5 {[%clk 0:02:13.3]} 8. Be3 {[%clk
0:02:52.1]} 8... Qc7 {[%clk 0:02:12.9]} 9. Ng5 {[%clk 0:02:49.3]} 9... O-O
{[%clk 0:02:12.1]} 10. f4 {[%clk 0:02:49]} 10... b5 {[%clk 0:02:10.6]} 11. Bd3
{[%clk 0:02:41.3]} 11... h6 {[%clk 0:02:10.5]} 12. Nh3 {[%clk 0:02:38.9]} 12...
Bc5 {[%clk 0:02:06.3]} 13. Qe2 {[%clk 0:02:35.4]} 13... Qb6 {[%clk 0:02:01.9]}
14. Rf3 {[%clk 0:02:29.3]} 14... Ng4 {[%clk 0:01:56.2]} 15. Bxc5 {[%clk
0:02:25.7]} 15... Nxc5 {[%clk 0:01:54.9]} 16. f5 {[%clk 0:02:22.5]} 16... Nxd3+
{[%clk 0:01:51.9]} 17. Kf1 {[%clk 0:02:21.2]} 17... Nxh2# {[%clk 0:01:50.4]} 0-1

[Event "*** Titled Tuesday Blitz"]
[Site "Chess.com"]
[Date "2021.02.09"]
[Round "10"]
[White "canary2016"]
[Black "niki_2003"]
[Result "1-0"]
[WhiteElo "1985"]
[BlackElo "2021"]
[TimeControl "180+1"]
[EndTime "11:50:45 PST"]
[Termination "canary2016 won by resignation"]

1. d4 {[%clk 0:03:00.9]} 1... Nf6 {[%clk 0:02:57.2]} 2. Bf4 {[%clk 0:03:00.3]}
2... e6 {[%clk 0:02:57.5]} 3. e3 {[%clk 0:02:56.1]} 3... b6 {[%clk 0:02:57.8]}
4. c4 {[%clk 0:02:55.4]} 4... Bb7 {[%clk 0:02:57.8]} 5. Nf3 {[%clk 0:02:55.8]}
5... Bb4+ {[%clk 0:02:58.2]} 6. Nc3 {[%clk 0:02:55.8]} 6... O-O {[%clk
0:02:58.7]} 7. Qb3 {[%clk 0:02:55.6]} 7... Bxc3+ {[%clk 0:02:58.2]} 8. Qxc3
{[%clk 0:02:55.6]} 8... Ne4 {[%clk 0:02:58.3]} 9. Qc2 {[%clk 0:02:55.1]} 9... d5
{[%clk 0:02:58.5]} 10. cxd5 {[%clk 0:02:52.7]} 10... Bxd5 {[%clk 0:02:54.8]} 11.
Bxc7 {[%clk 0:02:50.6]} 11... Qc8 {[%clk 0:02:53.8]} 12. Rc1 {[%clk 0:02:50.2]}
12... Nc6 {[%clk 0:02:49.7]} 13. Bg3 {[%clk 0:02:47.7]} 13... f5 {[%clk
0:02:40.1]} 14. Bb5 {[%clk 0:02:46.1]} 14... Nb4 {[%clk 0:02:37.6]} 15. Qxc8
{[%clk 0:02:44.5]} 15... Raxc8 {[%clk 0:02:37]} 16. Rxc8 {[%clk 0:02:43.2]}
16... Rxc8 {[%clk 0:02:36.7]} 17. O-O {[%clk 0:02:43.3]} 17... a6 {[%clk
0:02:34.2]} 18. Bd7 {[%clk 0:02:35.9]} 18... Rd8 {[%clk 0:02:32]} 19. Ne5 {[%clk
0:02:35.8]} 19... Nxa2 {[%clk 0:02:21.9]} 20. Ra1 {[%clk 0:02:23.1]} 20... b5
{[%clk 0:02:08.7]} 21. Bc6 {[%clk 0:02:18.6]} 21... Bxc6 {[%clk 0:02:07.4]} 22.
Nxc6 {[%clk 0:02:18.4]} 22... Rd7 {[%clk 0:02:07.6]} 23. Rxa2 {[%clk 0:02:17.4]}
23... Nxg3 {[%clk 0:02:05]} 24. hxg3 {[%clk 0:02:17.1]} 24... Rc7 {[%clk
0:02:05.9]} 25. Rxa6 {[%clk 0:02:16.8]} 1-0

[Event "*** Titled Tuesday Blitz"]
[Site "Chess.com"]
[Date "2021.02.09"]
[Round "10"]
[White "onetowin"]
[Black "LenkaPtacnikova"]
[Result "1-0"]
[WhiteElo "2026"]
[BlackElo "2118"]
[TimeControl "180+1"]
[EndTime "11:50:47 PST"]
[Termination "onetowin won by resignation"]

1. d4 {[%clk 0:03:00.9]} 1... Nf6 {[%clk 0:02:58.7]} 2. Nf3 {[%clk 0:03:00.7]}
2... e6 {[%clk 0:02:58.6]} 3. g3 {[%clk 0:03:00.8]} 3... c5 {[%clk 0:02:57.6]}
4. Bg2 {[%clk 0:02:59.2]} 4... Be7 {[%clk 0:02:55.5]} 5. O-O {[%clk 0:02:57.9]}
5... O-O {[%clk 0:02:55.4]} 6. c4 {[%clk 0:02:57.7]} 6... cxd4 {[%clk
0:02:54.5]} 7. Nxd4 {[%clk 0:02:56.7]} 7... Nc6 {[%clk 0:02:54.4]} 8. Nc3 {[%clk
0:02:53.8]} 8... a6 {[%clk 0:02:51.4]} 9. e4 {[%clk 0:02:50.6]} 9... Qc7 {[%clk
0:02:45.2]} 10. Be3 {[%clk 0:02:42.6]} 10... d6 {[%clk 0:02:37.7]} 11. Qe2
{[%clk 0:02:34.7]} 11... Ne5 {[%clk 0:02:36.9]} 12. b3 {[%clk 0:02:26.4]} 12...
b5 {[%clk 0:02:35.4]} 13. f4 {[%clk 0:02:13.5]} 13... b4 {[%clk 0:02:32.2]} 14.
Na4 {[%clk 0:01:59.5]} 14... Nc6 {[%clk 0:02:21.7]} 15. Nxc6 {[%clk 0:01:56.2]}
15... Qxc6 {[%clk 0:02:19.5]} 16. e5 {[%clk 0:01:49.7]} 16... d5 {[%clk
0:02:19.6]} 17. exf6 {[%clk 0:01:46.8]} 17... Bxf6 {[%clk 0:02:19.3]} 18. Rac1
{[%clk 0:01:47]} 1-0

[Event "*** Titled Tuesday Blitz"]
[Site "Chess.com"]
[Date "2021.02.09"]
[Round "10"]
[White "erlesfar"]
[Black "ZarinaShafigullina"]
[Result "1-0"]
[WhiteElo "2556"]
[BlackElo "2427"]
[TimeControl "180+1"]
[EndTime "11:51:06 PST"]
[Termination "erlesfar won by resignation"]

1. e4 {[%clk 0:03:00.9]} 1... c5 {[%clk 0:02:59.1]} 2. d4 {[%clk 0:02:59.9]}
2... cxd4 {[%clk 0:02:56.3]} 3. c3 {[%clk 0:02:59.9]} 3... dxc3 {[%clk
0:02:55.9]} 4. Nxc3 {[%clk 0:02:59.9]} 4... Nc6 {[%clk 0:02:55.6]} 5. Nf3 {[%clk
0:03:00.8]} 5... d6 {[%clk 0:02:53.1]} 6. Bc4 {[%clk 0:03:01.1]} 6... Nf6 {[%clk
0:02:51.6]} 7. e5 {[%clk 0:02:58.4]} 7... dxe5 {[%clk 0:02:43]} 8. Qxd8+ {[%clk
0:02:57.3]} 8... Kxd8 {[%clk 0:02:42.2]} 9. Ng5 {[%clk 0:02:55.9]} 9... Nd4
{[%clk 0:02:21.6]} 10. Nxf7+ {[%clk 0:02:53.7]} 10... Kc7 {[%clk 0:02:21.2]} 11.
O-O {[%clk 0:02:53.7]} 11... Rg8 {[%clk 0:02:17.7]} 12. Nxe5 {[%clk 0:02:46.9]}
12... Be6 {[%clk 0:02:14.7]} 13. Bf4 {[%clk 0:02:43.1]} 13... Bxc4 {[%clk
0:02:07]} 14. Nxc4+ {[%clk 0:02:42.5]} 14... Kc6 {[%clk 0:02:07.2]} 15. Rfd1
{[%clk 0:02:37.5]} 15... Ne6 {[%clk 0:01:57]} 16. Ne5+ {[%clk 0:02:35.1]} 16...
Kc7 {[%clk 0:01:54.5]} 17. Bg3 {[%clk 0:02:33.4]} 17... Nh5 {[%clk 0:01:53.2]}
18. Nb5+ {[%clk 0:02:32.5]} 18... Kb6 {[%clk 0:01:51.5]} 19. a4 {[%clk
0:02:26.6]} 19... Nxg3 {[%clk 0:01:50.1]} 20. hxg3 {[%clk 0:02:25.1]} 20... a6
{[%clk 0:01:45.3]} 21. Nd7+ {[%clk 0:02:19.6]} 21... Kc6 {[%clk 0:01:42]} 22.
Rac1+ {[%clk 0:02:17.5]} 1-0

[Event "*** Titled Tuesday Blitz"]
[Site "Chess.com"]
[Date "2021.02.09"]
[Round "10"]
[White "Orest_Vovk"]
[Black "azikom"]
[Result "0-1"]
[WhiteElo "2418"]
[BlackElo "2634"]
[TimeControl "180+1"]
[EndTime "11:51:49 PST"]
[Termination "azikom won by resignation"]

1. e4 {[%clk 0:03:00.9]} 1... c5 {[%clk 0:02:59.4]} 2. g3 {[%clk 0:03:00.6]}
2... d6 {[%clk 0:02:58.3]} 3. Bg2 {[%clk 0:03:00.5]} 3... g6 {[%clk 0:02:58.9]}
4. Ne2 {[%clk 0:03:00.4]} 4... Bg7 {[%clk 0:02:59.6]} 5. O-O {[%clk 0:02:59.5]}
5... Nc6 {[%clk 0:02:59.9]} 6. c3 {[%clk 0:02:59.5]} 6... e5 {[%clk 0:02:59.8]}
7. d3 {[%clk 0:02:56]} 7... Nge7 {[%clk 0:03:00]} 8. h3 {[%clk 0:02:54.9]} 8...
O-O {[%clk 0:02:59.9]} 9. f4 {[%clk 0:02:55]} 9... d5 {[%clk 0:02:59]} 10. Be3
{[%clk 0:02:49.9]} 10... dxe4 {[%clk 0:02:55.6]} 11. dxe4 {[%clk 0:02:48.8]}
11... b6 {[%clk 0:02:53.7]} 12. Na3 {[%clk 0:02:38.2]} 12... exf4 {[%clk
0:02:51.9]} 13. gxf4 {[%clk 0:02:34.1]} 13... Qxd1 {[%clk 0:02:46.8]} 14. Rfxd1
{[%clk 0:02:32.3]} 14... Ba6 {[%clk 0:02:47.3]} 15. Kf2 {[%clk 0:02:27.4]} 15...
Rad8 {[%clk 0:02:46.4]} 16. e5 {[%clk 0:02:14.2]} 16... f6 {[%clk 0:02:35.4]}
17. Rd6 {[%clk 0:02:08.5]} 17... fxe5 {[%clk 0:02:32.9]} 18. Rxc6 {[%clk
0:02:02.1]} 18... exf4 {[%clk 0:02:32.1]} 19. Nxf4 {[%clk 0:01:49.4]} 19... Nxc6
{[%clk 0:02:29.8]} 20. Bxc6 {[%clk 0:01:50.3]} 20... g5 {[%clk 0:02:30.3]} 21.
Kg3 {[%clk 0:00:58.4]} 21... gxf4+ {[%clk 0:02:30]} 22. Bxf4 {[%clk 0:00:59.3]}
22... Rd3+ {[%clk 0:02:29.7]} 23. Kg4 {[%clk 0:00:55.5]} 23... Bc8+ {[%clk
0:02:28.8]} 24. Kg5 {[%clk 0:00:55.8]} 24... Rf5+ {[%clk 0:02:27.4]} 0-1

[Event "*** Titled Tuesday Blitz"]
[Site "Chess.com"]
[Date "2021.02.09"]
[Round "10"]
[White "PotapovaM"]
[Black "Euwe1234"]
[Result "1-0"]
[WhiteElo "2630"]
[BlackElo "2470"]
[TimeControl "180+1"]
[EndTime "11:51:51 PST"]
[Termination "PotapovaM won by checkmate"]

1. d4 {[%clk 0:02:58.3]} 1... d5 {[%clk 0:02:56.9]} 2. c4 {[%clk 0:02:58.7]}
2... e6 {[%clk 0:02:57]} 3. Nc3 {[%clk 0:02:59.4]} 3... c6 {[%clk 0:02:56.6]} 4.
Nf3 {[%clk 0:02:58.7]} 4... Nf6 {[%clk 0:02:56.2]} 5. Bg5 {[%clk 0:02:58.3]}
5... dxc4 {[%clk 0:02:55.4]} 6. e4 {[%clk 0:02:56.9]} 6... b5 {[%clk 0:02:55.2]}
7. e5 {[%clk 0:02:56.8]} 7... h6 {[%clk 0:02:53.8]} 8. Bh4 {[%clk 0:02:57.4]}
8... g5 {[%clk 0:02:53.4]} 9. Nxg5 {[%clk 0:02:58]} 9... hxg5 {[%clk 0:02:54.3]}
10. Bxg5 {[%clk 0:02:58.9]} 10... Nbd7 {[%clk 0:02:52.1]} 11. exf6 {[%clk
0:02:58.8]} 11... Bb7 {[%clk 0:02:49.9]} 12. g3 {[%clk 0:02:59.1]} 12... c5
{[%clk 0:02:45.6]} 13. d5 {[%clk 0:02:59.3]} 13... b4 {[%clk 0:02:45.4]} 14.
dxe6 {[%clk 0:02:16.5]} 14... Bxh1 {[%clk 0:02:44.2]} 15. exf7+ {[%clk
0:01:50.6]} 15... Kxf7 {[%clk 0:02:42]} 16. Bxc4+ {[%clk 0:01:51.3]} 16... Kg6
{[%clk 0:02:41.1]} 17. h4 {[%clk 0:01:15.3]} 17... Nxf6 {[%clk 0:02:29.3]} 18.
Qc2+ {[%clk 0:01:09.7]} 18... Kg7 {[%clk 0:02:21.9]} 19. Ne2 {[%clk 0:01:00.1]}
19... Be7 {[%clk 0:02:17.4]} 20. Nf4 {[%clk 0:00:59.1]} 20... Qd6 {[%clk
0:02:13.2]} 21. Qg6+ {[%clk 0:00:57.6]} 21... Kf8 {[%clk 0:02:11.5]} 22. Qf7#
{[%clk 0:00:58.5]} 1-0

[Event "*** Titled Tuesday Blitz"]
[Site "Chess.com"]
[Date "2021.02.09"]
[Round "10"]
[White "davigator"]
[Black "Lion-Al-Messi"]
[Result "0-1"]
[WhiteElo "2357"]
[BlackElo "2526"]
[TimeControl "180+1"]
[EndTime "11:52:18 PST"]
[Termination "Lion-Al-Messi won by resignation"]

1. e4 {[%clk 0:03:00.9]} 1... b6 {[%clk 0:02:58.4]} 2. d4 {[%clk 0:02:59.2]}
2... Bb7 {[%clk 0:02:58.5]} 3. Nc3 {[%clk 0:02:59.3]} 3... e6 {[%clk 0:02:58.8]}
4. a3 {[%clk 0:02:59.3]} 4... Nf6 {[%clk 0:02:56]} 5. Bd3 {[%clk 0:02:58]} 5...
c5 {[%clk 0:02:52.6]} 6. dxc5 {[%clk 0:02:55.3]} 6... Bxc5 {[%clk 0:02:52.1]} 7.
Nf3 {[%clk 0:02:55.6]} 7... Nc6 {[%clk 0:02:45.1]} 8. O-O {[%clk 0:02:55.2]}
8... a6 {[%clk 0:02:40.9]} 9. h3 {[%clk 0:02:52.8]} 9... Qc7 {[%clk 0:02:39.9]}
10. Re1 {[%clk 0:02:51.7]} 10... O-O-O {[%clk 0:02:38.1]} 11. b4 {[%clk
0:02:43.8]} 11... Bd6 {[%clk 0:02:33.7]} 12. b5 {[%clk 0:02:43.5]} 12... Ne5
{[%clk 0:02:27.2]} 13. bxa6 {[%clk 0:02:43.4]} 13... Bc6 {[%clk 0:02:25.2]} 14.
Nb5 {[%clk 0:02:35.1]} 14... Bxb5 {[%clk 0:02:20.2]} 15. Bxb5 {[%clk 0:02:35.1]}
15... Bc5 {[%clk 0:02:15.3]} 16. Bf4 {[%clk 0:02:25.9]} 16... Nxf3+ {[%clk
0:02:06.5]} 17. Qxf3 {[%clk 0:02:24.8]} 17... e5 {[%clk 0:02:07.4]} 18. Bg5
{[%clk 0:02:23]} 18... d5 {[%clk 0:02:06.1]} 19. exd5 {[%clk 0:02:12.7]} 19...
e4 {[%clk 0:02:06.2]} 20. Qf5+ {[%clk 0:02:11.1]} 20... Kb8 {[%clk 0:02:05.7]}
21. Bxf6 {[%clk 0:02:11.3]} 21... gxf6 {[%clk 0:02:05.7]} 22. Rxe4 {[%clk
0:02:11.2]} 22... Rhg8 {[%clk 0:02:03.1]} 23. Rae1 {[%clk 0:02:09.2]} 23... Qg3
{[%clk 0:02:01.7]} 24. Qf4+ {[%clk 0:02:03.5]} 24... Qxf4 {[%clk 0:01:59.4]} 25.
Rxf4 {[%clk 0:02:03.7]} 25... Rxd5 {[%clk 0:01:55]} 26. Bd3 {[%clk 0:02:01.5]}
26... Rdg5 {[%clk 0:01:52.5]} 27. g4 {[%clk 0:02:00.8]} 27... h5 {[%clk
0:01:41.3]} 28. Be2 {[%clk 0:01:55.4]} 28... hxg4 {[%clk 0:01:40]} 29. hxg4
{[%clk 0:01:54.8]} 29... f5 {[%clk 0:01:39.5]} 30. Kf1 {[%clk 0:01:55.2]} 30...
Rh8 {[%clk 0:01:31.4]} 31. Bf3 {[%clk 0:01:53.3]} 31... fxg4 {[%clk 0:01:24.2]}
32. Rxg4 {[%clk 0:01:52.1]} 32... Rxg4 {[%clk 0:01:22.5]} 33. Bxg4 {[%clk
0:01:52.3]} 33... Ka7 {[%clk 0:01:22.4]} 34. Be2 {[%clk 0:01:51.3]} 34... Rh1+
{[%clk 0:01:22.3]} 0-1

[Event "*** Titled Tuesday Blitz"]
[Site "Chess.com"]
[Date "2021.02.09"]
[Round "10"]
[White "Srisshhhtea"]
[Black "igorcadilhac"]
[Result "1-0"]
[WhiteElo "2509"]
[BlackElo "2322"]
[TimeControl "180+1"]
[EndTime "11:52:30 PST"]
[Termination "Srisshhhtea won by resignation"]

1. d4 {[%clk 0:03:00.9]} 1... Nf6 {[%clk 0:02:58.7]} 2. c4 {[%clk 0:03:00.6]}
2... e6 {[%clk 0:02:59]} 3. Nf3 {[%clk 0:02:57.2]} 3... b6 {[%clk 0:02:56.6]} 4.
a3 {[%clk 0:02:55]} 4... Bb7 {[%clk 0:02:57]} 5. Nc3 {[%clk 0:02:54.2]} 5... Be7
{[%clk 0:02:57.5]} 6. d5 {[%clk 0:02:53.8]} 6... O-O {[%clk 0:02:45.3]} 7. e4
{[%clk 0:02:52.4]} 7... exd5 {[%clk 0:02:45.2]} 8. cxd5 {[%clk 0:02:51.5]} 8...
Re8 {[%clk 0:02:43]} 9. Bd3 {[%clk 0:02:51.7]} 9... c6 {[%clk 0:02:16.2]} 10.
O-O {[%clk 0:02:35.9]} 10... Na6 {[%clk 0:02:08.2]} 11. Bc2 {[%clk 0:02:30.3]}
11... Bf8 {[%clk 0:02:01.4]} 12. d6 {[%clk 0:02:02.2]} 12... Nc5 {[%clk
0:01:57.9]} 13. e5 {[%clk 0:01:58.9]} 13... Ba6 {[%clk 0:01:27.9]} 14. Re1
{[%clk 0:01:52.8]} 14... Re6 {[%clk 0:01:14.1]} 15. Ng5 {[%clk 0:01:33]} 15...
Rxe5 {[%clk 0:01:09.1]} 16. Rxe5 {[%clk 0:01:30.7]} 16... Bxd6 {[%clk
0:01:09.6]} 17. Qxd6 {[%clk 0:01:26.3]} 17... Ng4 {[%clk 0:00:59.7]} 1-0

[Event "*** Titled Tuesday Blitz"]
[Site "Chess.com"]
[Date "2021.02.09"]
[Round "10"]
[White "zurzan"]
[Black "CHENNAIBOND"]
[Result "1-0"]
[WhiteElo "1997"]
[BlackElo "1666"]
[TimeControl "180+1"]
[EndTime "11:52:31 PST"]
[Termination "zurzan won on time"]

1. f4 {[%clk 0:03:00.9]} 1... d5 {[%clk 0:01:03.7]} 2. Nf3 {[%clk 0:02:58.4]}
2... g6 {[%clk 0:01:03.8]} 3. g3 {[%clk 0:02:58.7]} 3... Bg7 {[%clk 0:01:03.8]}
4. Bg2 {[%clk 0:02:59.6]} 4... c5 {[%clk 0:01:03.7]} 5. O-O {[%clk 0:03:00.5]}
5... Nc6 {[%clk 0:01:03.7]} 6. d3 {[%clk 0:03:01.4]} 6... Nf6 {[%clk 0:01:03.5]}
7. c3 {[%clk 0:03:02.3]} 7... O-O {[%clk 0:01:03.6]} 8. Qc2 {[%clk 0:03:03.2]}
8... Bf5 {[%clk 0:01:02.3]} 9. Nh4 {[%clk 0:03:01.7]} 9... Be6 {[%clk 0:01:02]}
10. f5 {[%clk 0:02:59.5]} 10... Bd7 {[%clk 0:00:59.6]} 11. fxg6 {[%clk
0:02:55.5]} 11... fxg6 {[%clk 0:00:59.3]} 12. e4 {[%clk 0:02:52.2]} 12... d4
{[%clk 0:00:58.3]} 13. Qb3+ {[%clk 0:02:44.3]} 13... Kh8 {[%clk 0:00:50]} 14.
Na3 {[%clk 0:02:42.2]} 14... e5 {[%clk 0:00:46.5]} 15. Bg5 {[%clk 0:02:37.7]}
15... Na5 {[%clk 0:00:34.3]} 16. Qc2 {[%clk 0:02:26.5]} 16... b5 {[%clk
0:00:28]} 17. Rad1 {[%clk 0:02:19.6]} 17... Rc8 {[%clk 0:00:27.1]} 18. Qe2
{[%clk 0:02:15]} 1-0